[Event "Early-Titled-Tuesday-Blitz-June-18-2024"]
[Site "Chess.com"]
[Date "2024.06.18"]
[Round "3"]
[White "SchmakAttack"]
[Black "annazero"]
[Result "1-0"]
[WhiteElo "2819"]
[BlackElo "2528"]
[TimeControl "180+1"]
[EndTime "8:30:55 PDT"]
[Termination "SchmakAttack won by checkmate"]

1. d4 {[%clk 0:03:00]} 1... g6 {[%clk 0:03:00.6]} 2. Nf3 {[%clk 0:02:57.5]} 2...
Bg7 {[%clk 0:03:01.2]} 3. g3 {[%clk 0:02:58.1]} 3... d6 {[%clk 0:03:02.1]} 4.
Bg2 {[%clk 0:02:57.7]} 4... Nf6 {[%clk 0:03:02.8]} 5. O-O {[%clk 0:02:58]} 5...
O-O {[%clk 0:03:03.5]} 6. a4 {[%clk 0:02:58.1]} 6... Nc6 {[%clk 0:02:59.1]} 7.
a5 {[%clk 0:02:58.2]} 7... e5 {[%clk 0:02:58.8]} 8. dxe5 {[%clk 0:02:46.1]} 8...
dxe5 {[%clk 0:02:54.7]} 9. a6 {[%clk 0:02:45.9]} 9... e4 {[%clk 0:02:50.8]} 10.
Qxd8 {[%clk 0:02:33.3]} 10... Rxd8 {[%clk 0:02:49.9]} 11. Ng5 {[%clk 0:02:33.6]}
11... Nd4 {[%clk 0:02:40]} 12. Nxe4 {[%clk 0:02:33.1]} 12... Nxe2+ {[%clk
0:02:39.4]} 13. Kh1 {[%clk 0:02:33]} 13... Nxe4 {[%clk 0:02:36.3]} 14. Bxe4
{[%clk 0:02:33.9]} 14... Nxc1 {[%clk 0:02:36.6]} 15. axb7 {[%clk 0:02:26.8]}
15... Bxb7 {[%clk 0:02:33.8]} 16. Bxb7 {[%clk 0:02:27.7]} 16... Rab8 {[%clk
0:02:34.3]} 17. Bf3 {[%clk 0:02:23]} 17... Bxb2 {[%clk 0:02:27.6]} 18. Rxa7
{[%clk 0:02:22.5]} 18... c5 {[%clk 0:02:25.5]} 19. c4 {[%clk 0:02:12.3]} 19...
Nd3 {[%clk 0:02:19.6]} 20. Bd5 {[%clk 0:02:09.7]} 20... Ne5 {[%clk 0:02:00.9]}
21. Nd2 {[%clk 0:02:05]} 21... Rd7 {[%clk 0:01:55.4]} 22. Rxd7 {[%clk 0:02:02]}
22... Nxd7 {[%clk 0:01:56.3]} 23. Ne4 {[%clk 0:02:02.8]} 23... Bd4 {[%clk
0:01:54.7]} 24. Nd6 {[%clk 0:02:00.1]} 24... Kf8 {[%clk 0:01:35.8]} 25. Nxf7
{[%clk 0:01:46.3]} 25... Nf6 {[%clk 0:01:32]} 26. Ng5 {[%clk 0:01:46.2]} 26...
Nxd5 {[%clk 0:01:28]} 27. cxd5 {[%clk 0:01:46.3]} 27... Ke7 {[%clk 0:01:28.4]}
28. Ne4 {[%clk 0:01:38]} 28... Rd8 {[%clk 0:01:21.1]} 29. d6+ {[%clk 0:01:33.7]}
29... Ke6 {[%clk 0:01:20.1]} 30. Kg2 {[%clk 0:01:29.4]} 30... Kd5 {[%clk
0:01:19.6]} 31. f3 {[%clk 0:01:29.3]} 31... g5 {[%clk 0:01:10.3]} 32. Nxg5
{[%clk 0:00:45.6]} 32... Rxd6 {[%clk 0:01:06.7]} 33. Nxh7 {[%clk 0:00:45.7]}
33... Ra6 {[%clk 0:01:04.4]} 34. Ng5 {[%clk 0:00:44.1]} 34... c4 {[%clk
0:01:03.6]} 35. Ne4 {[%clk 0:00:44.2]} 35... c3 {[%clk 0:01:00.9]} 36. Nxc3+
{[%clk 0:00:33.6]} 36... Bxc3 {[%clk 0:01:01.8]} 37. h4 {[%clk 0:00:31.1]} 37...
Ke5 {[%clk 0:00:59.2]} 38. Kh3 {[%clk 0:00:28.4]} 38... Ra8 {[%clk 0:00:54.1]}
39. Rb1 {[%clk 0:00:22]} 39... Kf5 {[%clk 0:00:46.5]} 40. Rb5+ {[%clk
0:00:21.6]} 40... Kg6 {[%clk 0:00:46.1]} 41. f4 {[%clk 0:00:20.6]} 41... Ra1
{[%clk 0:00:43.8]} 42. h5+ {[%clk 0:00:18]} 42... Kh6 {[%clk 0:00:38.1]} 43. Kg4
{[%clk 0:00:18.4]} 43... Rg1 {[%clk 0:00:35.6]} 44. Rb6+ {[%clk 0:00:16.2]}
44... Kh7 {[%clk 0:00:34.8]} 45. Rb3 {[%clk 0:00:16.4]} 45... Bd4 {[%clk
0:00:33.7]} 46. Kf5 {[%clk 0:00:15.1]} 46... Ra1 {[%clk 0:00:31.2]} 47. g4
{[%clk 0:00:13.6]} 47... Ra5+ {[%clk 0:00:30.6]} 48. Ke4 {[%clk 0:00:14.1]}
48... Ra4 {[%clk 0:00:31.2]} 49. g5 {[%clk 0:00:11.1]} 49... Bc5+ {[%clk
0:00:20.6]} 50. Kf5 {[%clk 0:00:11.3]} 50... Bd6 {[%clk 0:00:20.9]} 51. Rb7+
{[%clk 0:00:10.8]} 51... Kg8 {[%clk 0:00:20.5]} 52. Rd7 {[%clk 0:00:09]} 52...
Rxf4+ {[%clk 0:00:19.7]} 53. Kg6 {[%clk 0:00:09.4]} 53... Kh8 {[%clk 0:00:19.6]}
54. Rxd6 {[%clk 0:00:08.7]} 54... Rf8 {[%clk 0:00:16.3]} 55. h6 {[%clk
0:00:09.3]} 55... Rg8+ {[%clk 0:00:16.7]} 56. Kh5 {[%clk 0:00:09.2]} 56... Ra8
{[%clk 0:00:17.2]} 57. g6 {[%clk 0:00:09.7]} 57... Ra5+ {[%clk 0:00:17.9]} 58.
Kg4 {[%clk 0:00:10.1]} 58... Ra4+ {[%clk 0:00:18.6]} 59. Kf5 {[%clk 0:00:10.4]}
59... Ra5+ {[%clk 0:00:19]} 60. Ke6 {[%clk 0:00:10.5]} 60... Ra8 {[%clk
0:00:19.8]} 61. Ke7 {[%clk 0:00:10.8]} 61... Rg8 {[%clk 0:00:20.1]} 62. Rd8
{[%clk 0:00:10.1]} 62... Rxd8 {[%clk 0:00:15.5]} 63. Kxd8 {[%clk 0:00:11]} 63...
Kg8 {[%clk 0:00:16.4]} 64. Ke7 {[%clk 0:00:11]} 64... Kh8 {[%clk 0:00:17.3]} 65.
g7+ {[%clk 0:00:11.3]} 65... Kg8 {[%clk 0:00:18.2]} 66. Kf6 {[%clk 0:00:11.1]}
66... Kh7 {[%clk 0:00:17.7]} 67. Kf7 {[%clk 0:00:12]} 67... Kxh6 {[%clk
0:00:18.3]} 68. g8=Q {[%clk 0:00:12.9]} 68... Kh5 {[%clk 0:00:19.2]} 69. Qg3
{[%clk 0:00:13.1]} 69... Kh6 {[%clk 0:00:19]} 70. Qh4# {[%clk 0:00:14]} 1-0

[Event "Early-Titled-Tuesday-Blitz-June-18-2024"]
[Site "Chess.com"]
[Date "2024.06.18"]
[Round "3"]
[White "baki83"]
[Black "DvaHrasta"]
[Result "1-0"]
[WhiteElo "2831"]
[BlackElo "2516"]
[TimeControl "180+1"]
[EndTime "8:30:55 PDT"]
[Termination "baki83 won on time"]

1. e4 {[%clk 0:03:00.2]} 1... c6 {[%clk 0:02:59.6]} 2. Nf3 {[%clk 0:03:00]} 2...
d5 {[%clk 0:02:59.7]} 3. Nc3 {[%clk 0:03:00.8]} 3... Nf6 {[%clk 0:02:58.1]} 4.
e5 {[%clk 0:03:00.2]} 4... Ne4 {[%clk 0:02:58.2]} 5. Ne2 {[%clk 0:02:57.8]} 5...
Qb6 {[%clk 0:02:57.3]} 6. d4 {[%clk 0:02:58.2]} 6... f6 {[%clk 0:02:57.2]} 7.
Ng3 {[%clk 0:02:54.9]} 7... Bg4 {[%clk 0:02:57.2]} 8. Bd3 {[%clk 0:02:39.5]}
8... fxe5 {[%clk 0:02:47.1]} 9. Nxe4 {[%clk 0:02:34.1]} 9... dxe4 {[%clk
0:02:46.2]} 10. Bxe4 {[%clk 0:02:34.7]} 10... exd4 {[%clk 0:02:43.9]} 11. Qxd4
{[%clk 0:02:25.5]} 11... Bxf3 {[%clk 0:02:40.3]} 12. Qxb6 {[%clk 0:02:24.8]}
12... axb6 {[%clk 0:02:40.4]} 13. Bxf3 {[%clk 0:02:24.7]} 13... Nd7 {[%clk
0:02:36.8]} 14. O-O {[%clk 0:02:19.7]} 14... e5 {[%clk 0:02:24.6]} 15. Re1
{[%clk 0:02:18.8]} 15... Bd6 {[%clk 0:02:12.2]} 16. Be3 {[%clk 0:02:02.2]} 16...
O-O-O {[%clk 0:02:04.8]} 17. a4 {[%clk 0:01:57.5]} 17... Bc5 {[%clk 0:01:47.1]}
18. Bg5 {[%clk 0:01:49.1]} 18... Rde8 {[%clk 0:01:42.5]} 19. Bh5 {[%clk
0:01:43.2]} 19... g6 {[%clk 0:01:39.3]} 20. Bg4 {[%clk 0:01:42.4]} 20... Rhf8
{[%clk 0:01:31.5]} 21. Re2 {[%clk 0:01:41.4]} 21... Kc7 {[%clk 0:01:28.1]} 22.
Bxd7 {[%clk 0:01:22.3]} 22... Kxd7 {[%clk 0:01:26]} 23. c3 {[%clk 0:01:22.9]}
23... Rf5 {[%clk 0:01:19]} 24. Rd1+ {[%clk 0:01:06.2]} 24... Kc7 {[%clk
0:01:14]} 25. Be3 {[%clk 0:00:54.9]} 25... Ra8 {[%clk 0:01:09.9]} 26. b3 {[%clk
0:00:50.7]} 26... Bxe3 {[%clk 0:01:06.8]} 27. Rxe3 {[%clk 0:00:51.1]} 27... Rd8
{[%clk 0:01:04.5]} 28. Rxd8 {[%clk 0:00:48.6]} 28... Kxd8 {[%clk 0:01:04.7]} 29.
Kf1 {[%clk 0:00:47.6]} 29... Kd7 {[%clk 0:01:04.6]} 30. Ke2 {[%clk 0:00:48.2]}
30... Kd6 {[%clk 0:01:04.8]} 31. Rd3+ {[%clk 0:00:47.9]} 31... Ke7 {[%clk
0:01:01.2]} 32. Re3 {[%clk 0:00:45.3]} 32... Kd6 {[%clk 0:01:00.9]} 33. Re4
{[%clk 0:00:45.9]} 33... b5 {[%clk 0:00:50]} 34. axb5 {[%clk 0:00:43.1]} 34...
cxb5 {[%clk 0:00:49.9]} 35. Rb4 {[%clk 0:00:38.1]} 35... Kc5 {[%clk 0:00:47.6]}
36. Rh4 {[%clk 0:00:38.6]} 36... h5 {[%clk 0:00:42.1]} 37. Re4 {[%clk
0:00:37.9]} 37... Kd5 {[%clk 0:00:41]} 38. Re3 {[%clk 0:00:35.9]} 38... Rf8
{[%clk 0:00:38.9]} 39. Rg3 {[%clk 0:00:34.9]} 39... Rf6 {[%clk 0:00:36.1]} 40.
Rd3+ {[%clk 0:00:30.8]} 40... Kc6 {[%clk 0:00:31.4]} 41. Rd8 {[%clk 0:00:29.9]}
41... Kc7 {[%clk 0:00:24.3]} 42. Rd5 {[%clk 0:00:28.5]} 42... Rc6 {[%clk
0:00:22.1]} 43. Kd3 {[%clk 0:00:27.8]} 43... e4+ {[%clk 0:00:13.8]} 44. Kd2
{[%clk 0:00:21.9]} 44... Rf6 {[%clk 0:00:11.2]} 45. Ke3 {[%clk 0:00:20.7]} 45...
Rc6 {[%clk 0:00:11.3]} 46. Rxb5 {[%clk 0:00:17.6]} 46... Rxc3+ {[%clk
0:00:11.4]} 47. Kxe4 {[%clk 0:00:18.2]} 47... Rc2 {[%clk 0:00:11.8]} 48. Ke3
{[%clk 0:00:18.5]} 48... Rc1 {[%clk 0:00:08.1]} 49. h4 {[%clk 0:00:16.8]} 49...
Rb1 {[%clk 0:00:07.1]} 50. Kd3 {[%clk 0:00:13.2]} 50... Rb2 {[%clk 0:00:06]} 51.
Ke3 {[%clk 0:00:10.8]} 51... Kc6 {[%clk 0:00:04.3]} 52. Rg5 {[%clk 0:00:09.5]}
52... Rxb3+ {[%clk 0:00:04.5]} 53. Kf4 {[%clk 0:00:05.5]} 53... Rb4+ {[%clk
0:00:03.3]} 54. Kg3 {[%clk 0:00:06.1]} 54... Rb3+ {[%clk 0:00:03.4]} 55. f3
{[%clk 0:00:06.1]} 55... b5 {[%clk 0:00:02.9]} 56. Rxg6+ {[%clk 0:00:06.7]}
56... Kc5 {[%clk 0:00:02.4]} 57. Rg5+ {[%clk 0:00:07.4]} 57... Kc4 {[%clk
0:00:02.8]} 58. Rxh5 {[%clk 0:00:08.1]} 58... Ra3 {[%clk 0:00:02.9]} 59. Rh8
{[%clk 0:00:08.5]} 59... b4 {[%clk 0:00:02.1]} 60. Rc8+ {[%clk 0:00:09]} 60...
Kd3 {[%clk 0:00:02.2]} 61. Rb8 {[%clk 0:00:07.5]} 61... Kc3 {[%clk 0:00:01.4]}
62. h5 {[%clk 0:00:07.5]} 62... b3 {[%clk 0:00:01.2]} 63. f4 {[%clk 0:00:07.4]}
63... b2 {[%clk 0:00:01]} 64. Rxb2 {[%clk 0:00:06.7]} 64... Kxb2+ {[%clk
0:00:01.3]} 65. Kg4 {[%clk 0:00:06.8]} 65... Kc3 {[%clk 0:00:01.8]} 66. h6
{[%clk 0:00:07.2]} 66... Kd4 {[%clk 0:00:01.6]} 67. Kf5 {[%clk 0:00:07.6]} 1-0

[Event "Early-Titled-Tuesday-Blitz-June-18-2024"]
[Site "Chess.com"]
[Date "2024.06.18"]
[Round "3"]
[White "EdenDzung06"]
[Black "slidingknight2775"]
[Result "1-0"]
[WhiteElo "2435"]
[BlackElo "2695"]
[TimeControl "180+1"]
[EndTime "8:30:56 PDT"]
[Termination "EdenDzung06 won by checkmate"]

1. d4 {[%clk 0:03:00.9]} 1... Nf6 {[%clk 0:02:59.6]} 2. Nf3 {[%clk 0:02:59.6]}
2... e6 {[%clk 0:02:59.1]} 3. c4 {[%clk 0:02:59.7]} 3... d5 {[%clk 0:02:58.8]}
4. g3 {[%clk 0:02:59.9]} 4... dxc4 {[%clk 0:02:57.6]} 5. Bg2 {[%clk 0:03:00]}
5... c6 {[%clk 0:02:58.3]} 6. O-O {[%clk 0:03:00.4]} 6... b5 {[%clk 0:02:58.5]}
7. a4 {[%clk 0:02:59.8]} 7... Bb7 {[%clk 0:02:57.6]} 8. b3 {[%clk 0:02:59.3]}
8... cxb3 {[%clk 0:02:56.3]} 9. Qxb3 {[%clk 0:03:00.2]} 9... a6 {[%clk
0:02:56.8]} 10. Nc3 {[%clk 0:02:59.7]} 10... Be7 {[%clk 0:02:33.3]} 11. Ne5
{[%clk 0:02:51.6]} 11... Qc8 {[%clk 0:02:21.3]} 12. axb5 {[%clk 0:02:09.5]}
12... cxb5 {[%clk 0:02:22.2]} 13. Nxb5 {[%clk 0:02:08.5]} 13... Bxg2 {[%clk
0:02:10.6]} 14. Kxg2 {[%clk 0:02:06.6]} 14... O-O {[%clk 0:01:44.5]} 15. Bg5
{[%clk 0:01:24.2]} 15... h6 {[%clk 0:01:21.4]} 16. Bxf6 {[%clk 0:01:22.5]} 16...
Qb7+ {[%clk 0:01:14.3]} 17. Qf3 {[%clk 0:01:21.2]} 17... Qxf3+ {[%clk
0:01:13.9]} 18. Nxf3 {[%clk 0:01:20]} 18... Bxf6 {[%clk 0:01:14.3]} 19. Rfc1
{[%clk 0:01:05.9]} 19... a5 {[%clk 0:00:28.2]} 20. Ra4 {[%clk 0:00:50.3]} 20...
Ra6 {[%clk 0:00:18.5]} 21. e4 {[%clk 0:00:36.1]} 21... g5 {[%clk 0:00:06.1]} 22.
g4 {[%clk 0:00:32.9]} 22... Nc6 {[%clk 0:00:04.2]} 23. d5 {[%clk 0:00:32.1]}
23... exd5 {[%clk 0:00:03.9]} 24. exd5 {[%clk 0:00:33]} 24... Ne5 {[%clk
0:00:03.6]} 25. Nc7 {[%clk 0:00:20.9]} 25... Ra7 {[%clk 0:00:03.6]} 26. Nb5
{[%clk 0:00:21]} 26... Ra6 {[%clk 0:00:03.8]} 27. Nxe5 {[%clk 0:00:19.9]} 27...
Bxe5 {[%clk 0:00:04]} 28. Rc6 {[%clk 0:00:18.7]} 28... Rxc6 {[%clk 0:00:03.4]}
29. dxc6 {[%clk 0:00:19.6]} 29... Rc8 {[%clk 0:00:04.3]} 30. Na7 {[%clk
0:00:17.9]} 30... Rc7 {[%clk 0:00:04.2]} 31. Rxa5 {[%clk 0:00:18.3]} 31... Bc3
{[%clk 0:00:02.9]} 32. Ra6 {[%clk 0:00:16]} 32... Kg7 {[%clk 0:00:02.6]} 33. Nb5
{[%clk 0:00:16.3]} 33... Rc8 {[%clk 0:00:02.1]} 34. c7 {[%clk 0:00:16]} 34...
Be5 {[%clk 0:00:01.9]} 35. Rc6 {[%clk 0:00:15.9]} 35... Bf4 {[%clk 0:00:02.5]}
36. Kf3 {[%clk 0:00:16]} 36... Bxh2 {[%clk 0:00:02.4]} 37. Ke4 {[%clk
0:00:15.9]} 37... Bxc7 {[%clk 0:00:03.1]} 38. Nxc7 {[%clk 0:00:15.2]} 38... Rb8
{[%clk 0:00:03.3]} 39. Nd5 {[%clk 0:00:14]} 39... Rb1 {[%clk 0:00:04.2]} 40. Ne3
{[%clk 0:00:14]} 40... Rg1 {[%clk 0:00:04.3]} 41. f3 {[%clk 0:00:14.2]} 41...
Re1 {[%clk 0:00:04.4]} 42. Rd6 {[%clk 0:00:13.7]} 42... Kf8 {[%clk 0:00:04.3]}
43. Rd7 {[%clk 0:00:13.5]} 43... Kg7 {[%clk 0:00:04.8]} 44. Ra7 {[%clk 0:00:14]}
44... Kg6 {[%clk 0:00:05.3]} 45. Kd4 {[%clk 0:00:14.3]} 45... Kg7 {[%clk
0:00:05.8]} 46. Ra6 {[%clk 0:00:14.6]} 46... f6 {[%clk 0:00:05.7]} 47. Nf5+
{[%clk 0:00:14.8]} 47... Kf7 {[%clk 0:00:05.6]} 48. Nxh6+ {[%clk 0:00:14.6]}
48... Kg6 {[%clk 0:00:06.1]} 49. Nf5 {[%clk 0:00:14.4]} 49... Kf7 {[%clk
0:00:06.6]} 50. Ra7+ {[%clk 0:00:14.7]} 50... Kf8 {[%clk 0:00:07.2]} 51. Kd5
{[%clk 0:00:14.3]} 51... Re5+ {[%clk 0:00:07]} 52. Kd6 {[%clk 0:00:14.3]} 52...
Re1 {[%clk 0:00:07.9]} 53. Nd4 {[%clk 0:00:14.1]} 53... Rf1 {[%clk 0:00:08.1]}
54. Ke6 {[%clk 0:00:12.7]} 54... Rd1 {[%clk 0:00:08.7]} 55. Nf5 {[%clk
0:00:12.3]} 55... Re1+ {[%clk 0:00:07.8]} 56. Kxf6 {[%clk 0:00:12.7]} 56... Ke8
{[%clk 0:00:08.1]} 57. Re7+ {[%clk 0:00:11.5]} 57... Rxe7 {[%clk 0:00:08.7]} 58.
Nxe7 {[%clk 0:00:12.3]} 58... Kd8 {[%clk 0:00:09.6]} 59. Nf5 {[%clk 0:00:12.3]}
59... Kc7 {[%clk 0:00:10.5]} 60. Kxg5 {[%clk 0:00:13.1]} 60... Kb6 {[%clk
0:00:11.4]} 61. Kf6 {[%clk 0:00:14]} 61... Ka5 {[%clk 0:00:12.3]} 62. g5 {[%clk
0:00:14.9]} 62... Ka4 {[%clk 0:00:13.2]} 63. g6 {[%clk 0:00:15.8]} 63... Kb3
{[%clk 0:00:14.1]} 64. g7 {[%clk 0:00:15.9]} 64... Ka2 {[%clk 0:00:15]} 65.
g8=Q+ {[%clk 0:00:16.8]} 65... Kb1 {[%clk 0:00:15.9]} 66. Qc8 {[%clk 0:00:16.9]}
66... Kb2 {[%clk 0:00:16]} 67. Qc4 {[%clk 0:00:17.5]} 67... Ka1 {[%clk
0:00:16.9]} 68. Qb4 {[%clk 0:00:17.8]} 68... Ka2 {[%clk 0:00:17.8]} 69. Nd4
{[%clk 0:00:16.2]} 69... Ka1 {[%clk 0:00:18.7]} 70. Nb5 {[%clk 0:00:15.2]} 70...
Ka2 {[%clk 0:00:19.6]} 71. Nc3+ {[%clk 0:00:15.3]} 71... Ka1 {[%clk 0:00:20.5]}
72. Qb1# {[%clk 0:00:15.9]} 1-0

[Event "Early-Titled-Tuesday-Blitz-June-18-2024"]
[Site "Chess.com"]
[Date "2024.06.18"]
[Round "3"]
[White "teresin05"]
[Black "mortngabriel"]
[Result "1/2-1/2"]
[WhiteElo "2311"]
[BlackElo "2517"]
[TimeControl "180+1"]
[EndTime "8:31:00 PDT"]
[Termination "Game drawn by repetition"]

1. e4 {[%clk 0:03:00.9]} 1... c5 {[%clk 0:02:59.6]} 2. Nf3 {[%clk 0:03:00.4]}
2... a6 {[%clk 0:02:59.4]} 3. c4 {[%clk 0:02:59]} 3... Nc6 {[%clk 0:02:59.2]} 4.
d4 {[%clk 0:02:59]} 4... cxd4 {[%clk 0:03:00.1]} 5. Nxd4 {[%clk 0:02:59.6]} 5...
e5 {[%clk 0:03:00.8]} 6. Nc2 {[%clk 0:02:51.1]} 6... Nf6 {[%clk 0:03:00.2]} 7.
Nc3 {[%clk 0:02:50]} 7... Bc5 {[%clk 0:03:00.8]} 8. Bg5 {[%clk 0:02:39]} 8...
Qb6 {[%clk 0:02:44.6]} 9. Qd2 {[%clk 0:02:32.3]} 9... Be7 {[%clk 0:00:48.9]} 10.
Bd3 {[%clk 0:01:27.3]} 10... O-O {[%clk 0:00:48]} 11. O-O {[%clk 0:01:23.4]}
11... d6 {[%clk 0:00:47.3]} 12. Be3 {[%clk 0:01:10.8]} 12... Qc7 {[%clk
0:00:41.9]} 13. f3 {[%clk 0:01:07]} 13... Be6 {[%clk 0:00:41.4]} 14. Rac1 {[%clk
0:01:06.1]} 14... Rac8 {[%clk 0:00:40.3]} 15. Nd5 {[%clk 0:01:05.4]} 15... Bxd5
{[%clk 0:00:32.9]} 16. cxd5 {[%clk 0:01:06.3]} 16... Nb8 {[%clk 0:00:26.3]} 17.
Nd4 {[%clk 0:00:55.5]} 17... Qd7 {[%clk 0:00:19.5]} 18. Nf5 {[%clk 0:00:53.8]}
18... Rfe8 {[%clk 0:00:11.3]} 19. Qf2 {[%clk 0:00:48.2]} 19... Bf8 {[%clk
0:00:10]} 20. Qg3 {[%clk 0:00:47.1]} 20... Rxc1 {[%clk 0:00:09.2]} 21. Rxc1
{[%clk 0:00:46.4]} 21... Rc8 {[%clk 0:00:09.1]} 22. Rxc8 {[%clk 0:00:34.3]}
22... Qxc8 {[%clk 0:00:10]} 23. Nh6+ {[%clk 0:00:34.5]} 23... Kh8 {[%clk
0:00:09.6]} 24. Nxf7+ {[%clk 0:00:35.1]} 24... Kg8 {[%clk 0:00:10.2]} 25. Nh6+
{[%clk 0:00:27.3]} 25... Kh8 {[%clk 0:00:10.2]} 26. Nf5 {[%clk 0:00:20.9]} 26...
Nbd7 {[%clk 0:00:10.1]} 27. h3 {[%clk 0:00:16.3]} 27... g6 {[%clk 0:00:10.1]}
28. Nh4 {[%clk 0:00:15.6]} 28... Nc5 {[%clk 0:00:08.3]} 29. Be2 {[%clk
0:00:14.2]} 29... Be7 {[%clk 0:00:08.5]} 30. Kh2 {[%clk 0:00:14.1]} 30... Qd8
{[%clk 0:00:07]} 31. Bg5 {[%clk 0:00:13.8]} 31... Nh5 {[%clk 0:00:06.4]} 32.
Bxe7 {[%clk 0:00:12.3]} 32... Qxe7 {[%clk 0:00:07.3]} 33. Qg4 {[%clk 0:00:12.2]}
33... Qf6 {[%clk 0:00:05.5]} 34. g3 {[%clk 0:00:12.3]} 34... Kg7 {[%clk
0:00:05]} 35. Ng2 {[%clk 0:00:12.8]} 35... b5 {[%clk 0:00:04.5]} 36. h4 {[%clk
0:00:12.2]} 36... Qf7 {[%clk 0:00:04.2]} 37. Qc8 {[%clk 0:00:12.6]} 37... Nf6
{[%clk 0:00:04.5]} 38. Qc6 {[%clk 0:00:11.9]} 38... Qe7 {[%clk 0:00:03.8]} 39.
Ne3 {[%clk 0:00:11.3]} 39... Nh5 {[%clk 0:00:03.1]} 40. Ng4 {[%clk 0:00:11.1]}
40... Nf4 {[%clk 0:00:02.1]} 41. Bf1 {[%clk 0:00:10.7]} 41... Nh5 {[%clk
0:00:01.8]} 42. b4 {[%clk 0:00:10.3]} 42... Na4 {[%clk 0:00:01.4]} 43. Qxa6
{[%clk 0:00:10.5]} 43... Nc3 {[%clk 0:00:02.3]} 44. Qc6 {[%clk 0:00:09.6]} 44...
Nxa2 {[%clk 0:00:02.6]} 45. Qxb5 {[%clk 0:00:08.2]} 45... Nf6 {[%clk 0:00:02.4]}
46. Qc4 {[%clk 0:00:08.5]} 46... Nxg4+ {[%clk 0:00:02.1]} 47. fxg4 {[%clk
0:00:09.4]} 47... Qf6 {[%clk 0:00:01.9]} 48. Qxa2 {[%clk 0:00:08.5]} 48... Qxf1
{[%clk 0:00:01.5]} 49. Qb2 {[%clk 0:00:08.6]} 49... Qb5 {[%clk 0:00:01.2]} 50.
g5 {[%clk 0:00:08.3]} 50... h5 {[%clk 0:00:02]} 51. Kh3 {[%clk 0:00:07.8]} 51...
Kf7 {[%clk 0:00:02.3]} 52. Kg2 {[%clk 0:00:07.9]} 52... Ke7 {[%clk 0:00:02.8]}
53. Kf2 {[%clk 0:00:05.1]} 53... Kd7 {[%clk 0:00:03.2]} 54. Kg2 {[%clk
0:00:03.8]} 54... Qd3 {[%clk 0:00:03.1]} 55. b5 {[%clk 0:00:03.6]} 55... Qxe4+
{[%clk 0:00:03.4]} 56. Kh2 {[%clk 0:00:03.2]} 56... Qxd5 {[%clk 0:00:03.8]} 57.
b6 {[%clk 0:00:03.9]} 57... Qb7 {[%clk 0:00:02.8]} 58. Qb5+ {[%clk 0:00:03.6]}
58... Ke6 {[%clk 0:00:02.6]} 59. Qc4+ {[%clk 0:00:03.9]} 59... d5 {[%clk
0:00:01.9]} 60. Qb5 {[%clk 0:00:04.4]} 60... Kd6 {[%clk 0:00:02]} 61. Qb4+
{[%clk 0:00:04.5]} 61... Kd7 {[%clk 0:00:02]} 62. Qb5+ {[%clk 0:00:04.7]} 62...
Qc6 {[%clk 0:00:02.6]} 63. Qb4 {[%clk 0:00:03.2]} 63... Qc2+ {[%clk 0:00:02.4]}
64. Kh3 {[%clk 0:00:03.2]} 64... Qf5+ {[%clk 0:00:02.7]} 65. Kh2 {[%clk
0:00:03.7]} 65... Qc2+ {[%clk 0:00:03.4]} 66. Kh3 {[%clk 0:00:03.9]} 66... Qf5+
{[%clk 0:00:03.9]} 67. Kh2 {[%clk 0:00:04.4]} 67... Qc2+ {[%clk 0:00:04.5]}
1/2-1/2